[Event "African Online-ch U20-Open 2021"]
[Site "Online"]
[Date "2021.02.01"]
[Round "5.14"]
[White "Darius Patlo Banda"]
[Black "Pungo, Honorato"]
[Result "1-0"]
[ECO "D36"]
[WhiteElo "1369"]
[BlackElo "1550"]
[Annotator "NA RC"]
[PlyCount "155"]
[EventDate "2021.02.01"]
[EventType "swiss"]
[EventCountry "NET"]
[SourceTitle "playchess.com"]
[Source "ChessBase"]
[SourceQuality "1"]
[TimeControl "1500+10"]

1. d4 {[%emt 0:00:00]} d5 {[%emt 0:00:04]} 2. c4 {[%emt 0:00:05]} e6 {[%emt 0:00:03]} 3. Nc3 {[%emt 0:00:04]} Nf6 {[%emt 0:00:05]} 4. cxd5 {[%emt 0:00:10]} exd5 {[%emt 0:00:06]} 5. Bg5 {[%emt 0:00:05]} Be7 {[%emt 0:00:03]} 6. Nf3 {[%emt 0:00:05]} O-O {[%emt 0:00:02]} 7. e3 {[%emt 0:00:06]} c6 {[%emt 0:00:02]} 8. Bd3 {[%emt 0:00:05]} Nbd7 {[%emt 0:00:08]} 9. O-O {[%emt 0:00:06]} Re8 {[%emt 0:00:06]} 10. Qc2 {[%emt 0:00:08]} a6 {[%emt 0:00:13]} 11. Rab1 {[%emt 0:00:08]} g6 {[%emt 0:00:11]} 12. b4 {[%emt 0:00:21]} Nf8 {[%emt 0:00:24]} 13. a4 {[%emt 0:00:28]} Ne6 {[%emt 0:00:41]} 14. Bh4 {[%emt 0:00:24]} Ng7 {[%emt 0:01:19]} 15. Qa2 {[%emt 0:01:26]} Nf5 {[%emt 0:00:20]} 16. Bg5 {[%emt 0:00:21]} Kg7 {[%emt 0:00:21]} 17. Qc2 {[%emt 0:00:21]} h6 {[%emt 0:00:22]} 18. Bf4 {[%emt 0:00:15]} Be6 {[%emt 0:01:54]} 19. b5 {[%emt 0:00:36]} axb5 {[%emt 0:00:14]} 20. axb5 {[%emt 0:00:05]} Bd7 {[%emt 0:01:26]} 21. Ne5 {[%emt 0:00:41]} Nd6 {[%emt 0:00:42]} 22. bxc6 {[%emt 0:01:16]} Bxc6 {[%emt 0:00:18]} 23. Nb5 {[%emt 0:00:35]} Nxb5 {[%emt 0:03:12]} 24. Bxb5 {[%emt 0:00:14]} Bxb5 {[%emt 0:00:25]} 25. Rxb5 {[%emt 0:00:07]} Ra7 {[%emt 0:00:36]} 26. Qb3 {[%emt 0:00:51]} Qa8 {[%emt 0:01:08]} 27. Nd3 {[%emt 0:00:50]} Ra3 {[%emt 0:00:41]} 28. Qc2 {[%emt 0:01:06]} Rc8 {[%emt 0:00:42]} 29. Nc5 {[%emt 0:01:11]} Ra2 {[%emt 0:00:55]} 30. Qc1 {[%emt 0:00:40]} Ne4 {[%emt 0:01:04]} 31. f3 {[%emt 0:01:01]} Nxc5 {[%emt 0:00:28]} 32. dxc5 {[%emt 0:00:10]} Qa6 {[%emt 0:02:39]} 33. Rb6 {[%emt 0:00:38]} Qa5 {[%emt 0:01:51]} 34. Rxb7 {[%emt 0:01:03]} Bxc5 {[%emt 0:00:13]} 35. Be5+ {[%emt 0:03:37]} Kg8 {[%emt 0:00:11]} 36. Bd4 {[%emt 0:00:19]} Qa6 {[%emt 0:00:41]} 37. Qb1 {[%emt 0:01:32]} Qe2 {[%emt 0:00:44]} 38. Rb2 {[%emt 0:00:48]} Rxb2 {[%emt 0:00:04]} 39. Qxb2 {[%emt 0:00:08]} Qxb2 {[%emt 0:00:05]} 40. Bxb2 {[%emt 0:00:05]} Bxe3+ {[%emt 0:00:02]} 41. Kh1 {[%emt 0:00:03]} Rc2 {[%emt 0:00:16]} 42. Ba1 {[%emt 0:00:11]} Rc1 {[%emt 0:00:21]} 43. Rxc1 {[%emt 0:00:08]} Bxc1 {[%emt 0:00:03]} 44. Bd4 {[%emt 0:00:03]} Bg5 {[%emt 0:00:05]} 45. Kg1 {[%emt 0:00:06]} f5 {[%emt 0:00:03]} 46. Kf2 {[%emt 0:00:05]} Kf7 {[%emt 0:00:02]} 47. Ke2 {[%emt 0:00:02]} Bf6 {[%emt 0:00:02]} 48. Be3 {[%emt 0:00:12]} g5 {[%emt 0:00:06]} 49. Kd3 {[%emt 0:00:07]} Ke6 {[%emt 0:00:02]} 50. g3 {[%emt 0:00:10]} Kd6 {[%emt 0:00:14]} 51. Bc1 {[%emt 0:00:46]} Be5 {[%emt 0:00:07]} 52. Ba3+ {[%emt 0:00:10]} Ke6 {[%emt 0:00:03]} 53. Bf8 {[%emt 0:00:10]} h5 {[%emt 0:00:03]} 54. Bh6 {[%emt 0:00:10]} g4 {[%emt 0:00:13]} 55. f4 {[%emt 0:00:26]} Bc7 {[%emt 0:00:08]} 56. Bg7 {[%emt 0:00:05]} h4 {[%emt 0:00:08]} 57. Bd4 {[%emt 0:00:14]} h3 {[%emt 0:00:03]} 58. Be3 {[%emt 0:00:15]} Bd6 {[%emt 0:00:08]} 59. Bd4 {[%emt 0:00:08]} Bxf4 {[%emt 0:00:16]} 60. gxf4 {[%emt 0:00:12]} g3 {[%emt 0:00:03]} 61. Bg1 {[%emt 0:00:07]} gxh2 {[%emt 0:00:22]} 62. Bxh2 {[%emt 0:00:05]} Kd6 {[%emt 0:00:02]} 63. Kd4 {[%emt 0:00:05]} Kc6 {[%emt 0:00:02]} 64. Bg1 {[%emt 0:00:36]} Kd6 {[%emt 0:00:04]} 65. Kd3 {[%emt 0:00:19]} Kc6 {[%emt 0:00:06]} 66. Ke2 {[%emt 0:01:04]} Kb5 {[%emt 0:00:05]} 67. Kf3 {[%emt 0:00:03]} Kc4 {[%emt 0:00:03]} 68. Kg3 {[%emt 0:00:03]} d4 {[%emt 0:00:15]} 69. Kxh3 {[%emt 0:00:05]} d3 {[%emt 0:00:03]} 70. Be3 {[%emt 0:00:04]} Kc3 {[%emt 0:00:28]} 71. Kh4 {[%emt 0:00:06]} d2 {[%emt 0:00:02]} 72. Bxd2+ {[%emt 0:00:04]} Kxd2 {[%emt 0:00:24]} 73. Kg5 {[%emt 0:00:05]} Kd3 {[%emt 0:00:02]} 74. Kxf5 {[%emt 0:00:03]} Kd4 {[%emt 0:00:02]} 75. Kf6 {[%emt 0:00:04]} Kd5 {[%emt 0:00:02]} 76. f5 {[%emt 0:00:05]} Kd6 {[%emt 0:00:02]} 77. Kf7 {[%emt 0:00:03]} Kd7 {[%emt 0:00:03]} 78. f6 {[%emt 0:00:10]} 1-0

[Event "African Online-ch U20-Open 2021"]
[Site "Online"]
[Date "2021.02.01"]
[Round "5.16"]
[White "Lion, Pierre"]
[Black "George Samir, David"]
[Result "0-1"]
[ECO "B88"]
[WhiteElo "1586"]
[BlackElo "1775"]
[Annotator "NA RC"]
[PlyCount "134"]
[EventDate "2021.02.01"]
[EventType "swiss"]
[EventCountry "NET"]
[SourceTitle "playchess.com"]
[Source "ChessBase"]
[SourceQuality "1"]
[TimeControl "1500+10"]

1. e4 {[%emt 0:00:00]} c5 {[%emt 0:00:03]} 2. Nf3 {[%emt 0:00:02]} d6 {[%emt 0:00:22]} 3. d4 {[%emt 0:00:02]} cxd4 {[%emt 0:00:03]} 4. Nxd4 {[%emt 0:00:01]} Nf6 {[%emt 0:00:02]} 5. Nc3 {[%emt 0:00:01]} Nc6 {[%emt 0:00:02]} 6. Bc4 {[%emt 0:00:03]} e6 {[%emt 0:00:04]} 7. Bb3 {[%emt 0:00:03]} Be7 {[%emt 0:00:16]} 8. O-O {[%emt 0:00:09]} a6 {[%emt 0:00:03]} 9. Be3 {[%emt 0:00:05]} O-O {[%emt 0:00:07]} 10. f4 {[%emt 0:00:06]} Qc7 {[%emt 0:00:33]} 11. f5 {[%emt 0:00:13]} e5 {[%emt 0:01:11]} 12. Nde2 {[%emt 0:00:13]} b5 {[%emt 0:01:15]} 13. h3 {[%emt 0:00:20]} Bb7 {[%emt 0:01:39]} 14. g4 {[%emt 0:00:03]} b4 {[%emt 0:00:08]} 15. Nd5 {[%emt 0:00:04]} Nxd5 {[%emt 0:00:06]} 16. Bxd5 {[%emt 0:00:02]} Na5 {[%emt 0:00:21]} 17. g5 {[%emt 0:03:00]} Nc4 {[%emt 0:00:28]} 18. Bxc4 {[%emt 0:01:56]} Qxc4 {[%emt 0:00:04]} 19. f6 {[%emt 0:00:03]} Qxe4 {[%emt 0:00:06]} 20. Kf2 {[%emt 0:00:31]} gxf6 {[%emt 0:02:25]} 21. gxf6 {[%emt 0:00:06]} Bxf6 {[%emt 0:00:03]} 22. Bh6 {[%emt 0:00:17]} Bh4+ {[%emt 0:00:34]} 23. Ng3 {[%emt 0:00:10]} Qg2+ {[%emt 0:00:05]} 24. Ke1 {[%emt 0:00:02]} Bxg3+ {[%emt 0:00:04]} 25. Rf2 {[%emt 0:00:01]} Bxf2+ {[%emt 0:00:16]} 26. Ke2 {[%emt 0:00:10]} Bf3+ {[%emt 0:00:04]} 27. Kd3 {[%emt 0:00:03]} e4+ {[%emt 0:00:02]} 28. Kc4 {[%emt 0:00:02]} Rfc8+ {[%emt 0:00:09]} 29. Kb3 {[%emt 0:00:01]} Bxd1 {[%emt 0:00:05]} 30. Ka4 {[%emt 0:00:02]} Bxc2+ {[%emt 0:00:04]} 31. Ka5 {[%emt 0:00:02]} Rc5+ {[%emt 0:00:05]} 32. Kb6 {[%emt 0:00:01]} Rh5+ {[%emt 0:00:08]} 33. Kb7 {[%emt 0:00:02]} e3+ {[%emt 0:00:04]} 34. Kc7 {[%emt 0:00:01]} Rxh6 {[%emt 0:00:08]} 35. Kd7 {[%emt 0:00:02]} Ra7+ {[%emt 0:00:03]} 36. Kd8 {[%emt 0:00:02]} e2 {[%emt 0:00:09]} 37. Rg1 {[%emt 0:00:07]} Bxg1 {[%emt 0:00:07]} 38. a4 {[%emt 0:00:01]} e1=Q {[%emt 0:00:05]} 39. a5 {[%emt 0:00:01]} f5 {[%emt 0:00:15]} 40. b3 {[%emt 0:00:02]} f4 {[%emt 0:00:02]} 41. h4 {[%emt 0:00:01]} f3 {[%emt 0:00:02]} 42. h5 {[%emt 0:00:01]} f2 {[%emt 0:00:02]} 43. Kc8 {[%emt 0:00:03]} f1=Q {[%emt 0:00:05]} 44. Kd8 {[%emt 0:00:01]} d5 {[%emt 0:00:02]} 45. Kc8 {[%emt 0:00:02]} d4 {[%emt 0:00:02]} 46. Kd8 {[%emt 0:00:01]} d3 {[%emt 0:00:02]} 47. Kc8 {[%emt 0:00:02]} d2 {[%emt 0:00:03]} 48. Kb8 {[%emt 0:00:01]} d1=Q {[%emt 0:00:15]} 49. Kc8 {[%emt 0:00:02]} Qdg4+ {[%emt 0:00:08]} 50. Kb8 {[%emt 0:00:02]} Bh2+ {[%emt 0:00:09]} 51. Kxa7 {[%emt 0:00:03]} Bb8+ {[%emt 0:00:19]} 52. Kxb8 {[%emt 0:00:05]} Rxh5 {[%emt 0:00:09]} 53. Ka7 {[%emt 0:00:03]} Rh1 {[%emt 0:00:03]} 54. Kb8 {[%emt 0:00:01]} Rg1 {[%emt 0:00:02]} 55. Ka7 {[%emt 0:00:01]} h6 {[%emt 0:00:02]} 56. Kb8 {[%emt 0:00:02]} h5 {[%emt 0:00:02]} 57. Ka7 {[%emt 0:00:01]} h4 {[%emt 0:00:02]} 58. Kb8 {[%emt 0:00:01]} h3 {[%emt 0:00:02]} 59. Ka7 {[%emt 0:00:02]} h2 {[%emt 0:00:01]} 60. Kb8 {[%emt 0:00:01]} h1=Q {[%emt 0:00:03]} 61. Ka7 {[%emt 0:00:01]} Bxb3 {[%emt 0:00:05]} 62. Kb8 {[%emt 0:00:02]} Bc2 {[%emt 0:00:02]} 63. Ka7 {[%emt 0:00:01]} b3 {[%emt 0:00:03]} 64. Kb8 {[%emt 0:00:02]} b2 {[%emt 0:00:02]} 65. Ka7 {[%emt 0:00:01]} Qe7+ {[%emt 0:00:18]} 66. Kb8 {[%emt 0:00:03]} Qgb4+ {[%emt 0:00:04]} 67. Kc8 {[%emt 0:00:04]} Bf5# {[%emt 0:00:02]} 0-1

[Event "African Online-ch U20-Open 2021"]
[Site "Online"]
[Date "2021.02.01"]
[Round "5.17"]
[White "Dutt Dakshesh"]
[Black "Masaiti, Gideon"]
[Result "0-1"]
[ECO "D02"]
[WhiteElo "1549"]
[BlackElo "1442"]
[Annotator "NA RC"]
[PlyCount "164"]
[EventDate "2021.02.01"]
[EventType "swiss"]
[EventCountry "NET"]
[SourceTitle "playchess.com"]
[Source "ChessBase"]
[SourceQuality "1"]
[TimeControl "1500+10"]

1. d4 {[%emt 0:00:00]} e6 {[%emt 0:00:04]} 2. Bf4 {[%emt 0:00:06]} d5 {[%emt 0:00:04]} 3. e3 {[%emt 0:00:03]} Nf6 {[%emt 0:00:03]} 4. Nf3 {[%emt 0:00:03]} Bd6 {[%emt 0:00:02]} 5. Bg3 {[%emt 0:00:03]} O-O {[%emt 0:00:05]} 6. c3 {[%emt 0:00:04]} Nbd7 {[%emt 0:00:03]} 7. Bd3 {[%emt 0:00:03]} a6 {[%emt 0:00:05]} 8. Nbd2 {[%emt 0:00:04]} Qe7 {[%emt 0:00:07]} 9. O-O {[%emt 0:00:12]} Bxg3 {[%emt 0:00:05]} 10. hxg3 {[%emt 0:00:03]} h6 {[%emt 0:00:03]} 11. Qe2 {[%emt 0:00:07]} c5 {[%emt 0:00:04]} 12. e4 {[%emt 0:00:03]} c4 {[%emt 0:00:29]} 13. Bc2 {[%emt 0:00:57]} Re8 {[%emt 0:00:35]} 14. Rfe1 {[%emt 0:00:19]} b5 {[%emt 0:00:15]} 15. exd5 {[%emt 0:01:35]} Nxd5 {[%emt 0:00:23]} 16. Be4 {[%emt 0:00:24]} Bb7 {[%emt 0:00:04]} 17. Bc2 {[%emt 0:00:51]} N7f6 {[%emt 0:00:08]} 18. Ne5 {[%emt 0:00:05]} Qd6 {[%emt 0:00:31]} 19. Ndf3 {[%emt 0:00:29]} b4 {[%emt 0:02:07]} 20. Nxc4 {[%emt 0:01:56]} Qe7 {[%emt 0:00:16]} 21. Ba4 {[%emt 0:00:37]} Rec8 {[%emt 0:00:36]} 22. Rac1 {[%emt 0:00:54]} a5 {[%emt 0:00:45]} 23. Nce5 {[%emt 0:00:35]} bxc3 {[%emt 0:01:12]} 24. Bb3 {[%emt 0:01:34]} Ba6 {[%emt 0:00:37]} 25. Qc2 {[%emt 0:01:51]} Nb4 {[%emt 0:01:59]} 26. Qb1 {[%emt 0:01:07]} cxb2 {[%emt 0:02:34]} 27. Qxb2 {[%emt 0:00:33]} Rxc1 {[%emt 0:02:43]} 28. Rxc1 {[%emt 0:00:22]} Rc8 {[%emt 0:00:44]} 29. Rxc8+ {[%emt 0:00:35]} Bxc8 {[%emt 0:00:05]} 30. Qc1 {[%emt 0:00:34]} Bb7 {[%emt 0:00:26]} 31. Kh2 {[%emt 0:01:27]} Bd5 {[%emt 0:01:54]} 32. Bxd5 {[%emt 0:00:32]} Nbxd5 {[%emt 0:00:21]} 33. Qc8+ {[%emt 0:00:27]} Kh7 {[%emt 0:00:08]} 34. Qc2+ {[%emt 0:00:14]} g6 {[%emt 0:00:24]} 35. Qc5 {[%emt 0:00:12]} Qxc5 {[%emt 0:01:08]} 36. dxc5 {[%emt 0:00:02]} Kg7 {[%emt 0:00:11]} 37. Kg1 {[%emt 0:00:18]} Kf8 {[%emt 0:00:03]} 38. Kf1 {[%emt 0:00:02]} Ke7 {[%emt 0:00:03]} 39. Ke2 {[%emt 0:00:02]} Nc3+ {[%emt 0:00:06]} 40. Kd3 {[%emt 0:00:06]} Nxa2 {[%emt 0:00:02]} 41. Kc4 {[%emt 0:00:03]} Nd7 {[%emt 0:00:23]} 42. c6 {[%emt 0:00:05]} Nxe5+ {[%emt 0:00:17]} 43. Nxe5 {[%emt 0:00:03]} Kd6 {[%emt 0:00:07]} 44. Kb5 {[%emt 0:00:17]} Nc3+ {[%emt 0:00:09]} 45. Kxa5 {[%emt 0:00:06]} f6 {[%emt 0:00:05]} 46. Kb6 {[%emt 0:00:11]} Nd5+ {[%emt 0:00:06]} 47. Kb7 {[%emt 0:00:03]} Kxe5 {[%emt 0:00:06]} 48. c7 {[%emt 0:00:04]} Nxc7 {[%emt 0:00:05]} 49. Kxc7 {[%emt 0:00:02]} Ke4 {[%emt 0:00:02]} 50. Kd6 {[%emt 0:00:02]} Kf5 {[%emt 0:00:07]} 51. f3 {[%emt 0:00:06]} h5 {[%emt 0:00:05]} 52. Kc5 {[%emt 0:00:02]} Ke5 {[%emt 0:00:05]} 53. Kc4 {[%emt 0:00:02]} g5 {[%emt 0:00:04]} 54. Kd3 {[%emt 0:00:02]} Kd5 {[%emt 0:00:02]} 55. Ke3 {[%emt 0:00:02]} f5 {[%emt 0:00:02]} 56. Kf2 {[%emt 0:00:17]} Kd4 {[%emt 0:00:04]} 57. Ke2 {[%emt 0:00:02]} e5 {[%emt 0:00:02]} 58. f4 {[%emt 0:00:13]} exf4 {[%emt 0:00:05]} 59. gxf4 {[%emt 0:00:05]} g4 {[%emt 0:00:11]} 60. Kf2 {[%emt 0:00:12]} h4 {[%emt 0:00:05]} 61. g3 {[%emt 0:00:04]} hxg3+ {[%emt 0:00:07]} 62. Kxg3 {[%emt 0:00:02]} Ke3 {[%emt 0:00:02]} 63. Kg2 {[%emt 0:00:05]} Kxf4 {[%emt 0:00:03]} 64. Kf2 {[%emt 0:00:01]} Ke4 {[%emt 0:00:02]} 65. Kg3 {[%emt 0:00:02]} Ke3 {[%emt 0:00:16]} 66. Kg2 {[%emt 0:02:30]} f4 {[%emt 0:01:44]} 67. Kg1 {[%emt 0:00:02]} Ke2 {[%emt 0:00:04]} 68. Kg2 {[%emt 0:00:02]} f3+ {[%emt 0:00:02]} 69. Kg1 {[%emt 0:00:02]} g3 {[%emt 0:00:04]} 70. Kh1 {[%emt 0:00:03]} g2+ {[%emt 0:00:03]} 71. Kg1 {[%emt 0:00:02]} Ke1 {[%emt 0:00:02]} 72. Kh2 {[%emt 0:00:04]} Kf1 {[%emt 0:00:04]} 73. Kg3 {[%emt 0:00:02]} f2 {[%emt 0:00:02]} 74. Kf3 {[%emt 0:00:01]} g1=N+ {[%emt 0:00:05]} 75. Kg3 {[%emt 0:00:04]} Ke1 {[%emt 0:00:03]} 76. Kg2 {[%emt 0:00:01]} f1=Q+ {[%emt 0:00:04]} 77. Kg3 {[%emt 0:00:03]} Qf3+ {[%emt 0:00:02]} 78. Kh4 {[%emt 0:00:05]} Qg2 {[%emt 0:00:12]} 79. Kh5 {[%emt 0:00:03]} Nf3 {[%emt 0:00:04]} 80. Kh6 {[%emt 0:00:01]} Ne5 {[%emt 0:00:02]} 81. Kh7 {[%emt 0:00:26]} Qg6+ {[%emt 0:00:06]} 82. Kh8 {[%emt 0:00:02]} Nf7# {[%emt 0:00:03]} 0-1

[Event "African Online-ch U20-Open 2021"]
[Site "Online"]
[Date "2021.02.01"]
[Round "5.21"]
[White "Belattar, Mohamed Walid"]
[Black "Meise, Keagen"]
[Result "0-1"]
[ECO "E04"]
[WhiteElo "1214"]
[BlackElo "1200"]
[Annotator "NA RC"]
[PlyCount "150"]
[EventDate "2021.02.01"]
[EventType "swiss"]
[EventCountry "NET"]
[SourceTitle "playchess.com"]
[Source "ChessBase"]
[SourceQuality "1"]
[TimeControl "1500+10"]

1. d4 {[%emt 0:00:00]} Nf6 {[%emt 0:00:04]} 2. Nf3 {[%emt 0:00:03]} d5 {[%emt 0:00:03]} 3. g3 {[%emt 0:00:04]} e6 {[%emt 0:00:03]} 4. Bg2 {[%emt 0:00:10]} c5 {[%emt 0:00:02]} 5. O-O {[%emt 0:00:04]} Nc6 {[%emt 0:00:04]} 6. c4 {[%emt 0:00:06]} dxc4 {[%emt 0:00:15]} 7. Qa4 {[%emt 0:05:51]} Bd7 {[%emt 0:01:27]} 8. Qxc4 {[%emt 0:00:33]} cxd4 {[%emt 0:00:19]} 9. Nxd4 {[%emt 0:00:17]} Rc8 {[%emt 0:01:12]} 10. Nxc6 {[%emt 0:02:30]} Bxc6 {[%emt 0:00:04]} 11. Qd3 {[%emt 0:00:09]} Qxd3 {[%emt 0:01:51]} 12. exd3 {[%emt 0:00:07]} Bxg2 {[%emt 0:00:29]} 13. Kxg2 {[%emt 0:00:04]} Nd5 {[%emt 0:00:02]} 14. Rd1 {[%emt 0:05:15]} Nb4 {[%emt 0:01:23]} 15. Nc3 {[%emt 0:01:40]} Rd8 {[%emt 0:00:54]} 16. d4 {[%emt 0:00:40]} Nc2 {[%emt 0:00:12]} 17. Rb1 {[%emt 0:00:17]} Nxd4 {[%emt 0:00:21]} 18. Be3 {[%emt 0:00:28]} Nc6 {[%emt 0:00:20]} 19. Rxd8+ {[%emt 0:00:12]} Kxd8 {[%emt 0:00:01]} 20. Rd1+ {[%emt 0:00:05]} Kc8 {[%emt 0:00:21]} 21. Nb5 {[%emt 0:00:13]} a6 {[%emt 0:00:03]} 22. Na7+ {[%emt 0:00:21]} Nxa7 {[%emt 0:00:06]} 23. Bxa7 {[%emt 0:00:04]} Be7 {[%emt 0:00:06]} 24. Bd4 {[%emt 0:00:05]} f6 {[%emt 0:00:05]} 25. Rc1+ {[%emt 0:00:20]} Kb8 {[%emt 0:00:09]} 26. Re1 {[%emt 0:00:06]} e5 {[%emt 0:00:04]} 27. Bc3 {[%emt 0:00:07]} Rd8 {[%emt 0:00:03]} 28. Ba5 {[%emt 0:01:10]} Rd5 {[%emt 0:00:22]} 29. Bc3 {[%emt 0:00:11]} Bc5 {[%emt 0:00:14]} 30. Re2 {[%emt 0:01:09]} Kc7 {[%emt 0:00:20]} 31. Rc2 {[%emt 0:01:04]} Kd6 {[%emt 0:00:16]} 32. Rd2 {[%emt 0:02:20]} Rxd2 {[%emt 0:00:03]} 33. Bxd2 {[%emt 0:00:04]} Kd5 {[%emt 0:00:14]} 34. Kf1 {[%emt 0:00:16]} Bd4 {[%emt 0:00:04]} 35. b3 {[%emt 0:00:10]} Ke4 {[%emt 0:00:31]} 36. Ke2 {[%emt 0:00:11]} b6 {[%emt 0:00:10]} 37. f3+ {[%emt 0:00:16]} Kd5 {[%emt 0:00:03]} 38. Kd3 {[%emt 0:00:16]} f5 {[%emt 0:00:16]} 39. f4 {[%emt 0:00:50]} e4+ {[%emt 0:00:45]} 40. Ke2 {[%emt 0:00:09]} g6 {[%emt 0:00:14]} 41. h4 {[%emt 0:00:52]} h5 {[%emt 0:00:36]} 42. Bc1 {[%emt 0:00:33]} a5 {[%emt 0:00:50]} 43. Bd2 {[%emt 0:00:15]} Kc5 {[%emt 0:00:28]} 44. a3 {[%emt 0:00:14]} Kd5 {[%emt 0:01:17]} 45. Bc1 {[%emt 0:00:19]} b5 {[%emt 0:00:34]} 46. Bd2 {[%emt 0:00:14]} a4 {[%emt 0:00:03]} 47. bxa4 {[%emt 0:00:42]} bxa4 {[%emt 0:00:03]} 48. Bb4 {[%emt 0:01:03]} Kc4 {[%emt 0:00:05]} 49. Be7 {[%emt 0:00:44]} Kb3 {[%emt 0:00:04]} 50. Bb4 {[%emt 0:00:07]} Bb2 {[%emt 0:00:07]} 51. Be7 {[%emt 0:00:11]} Bxa3 {[%emt 0:00:03]} 52. Bf6 {[%emt 0:00:03]} Bb2 {[%emt 0:00:02]} 53. Be7 {[%emt 0:00:02]} a3 {[%emt 0:00:04]} 54. Bxa3 {[%emt 0:00:03]} Kxa3 {[%emt 0:00:02]} 55. Ke3 {[%emt 0:00:02]} Kb3 {[%emt 0:00:02]} 56. Ke2 {[%emt 0:00:04]} Kc4 {[%emt 0:00:04]} 57. Ke3 {[%emt 0:00:03]} Bd4+ {[%emt 0:00:01]} 58. Ke2 {[%emt 0:00:03]} Kc3 {[%emt 0:00:02]} 59. Ke1 {[%emt 0:00:04]} Kd3 {[%emt 0:00:04]} 60. Kf1 {[%emt 0:00:08]} e3 {[%emt 0:00:03]} 61. Ke1 {[%emt 0:00:02]} e2 {[%emt 0:00:02]} 62. g4 {[%emt 0:00:09]} Bc3+ {[%emt 0:00:03]} 63. Kf2 {[%emt 0:00:04]} e1=Q+ {[%emt 0:00:05]} 64. Kf3 {[%emt 0:00:02]} Qe2+ {[%emt 0:00:05]} 65. Kg3 {[%emt 0:00:05]} Qxg4+ {[%emt 0:00:02]} 66. Kf2 {[%emt 0:00:03]} Qxf4+ {[%emt 0:00:05]} 67. Kg2 {[%emt 0:00:02]} Bd4 {[%emt 0:00:10]} 68. Kh1 {[%emt 0:00:27]} Qxh4+ {[%emt 0:00:06]} 69. Kg2 {[%emt 0:00:04]} Qf2+ {[%emt 0:00:02]} 70. Kh3 {[%emt 0:00:06]} Qf3+ {[%emt 0:00:03]} 71. Kh2 {[%emt 0:00:04]} Bg1+ {[%emt 0:00:06]} 72. Kxg1 {[%emt 0:00:04]} Qe2 {[%emt 0:00:01]} 73. Kh1 {[%emt 0:00:03]} Ke3 {[%emt 0:00:02]} 74. Kg1 {[%emt 0:00:03]} Kf3 {[%emt 0:00:02]} 75. Kh1 {[%emt 0:00:05]} Qg2# {[%emt 0:00:02]} 0-1

[Event "African Online-ch U20-Open 2021"]
[Site "Online"]
[Date "2021.02.01"]
[Round "6.5"]
[White "Mohamed Abderrahim, Taleb Mohamed"]
[Black "Machinya Desire"]
[Result "1-0"]
[ECO "B20"]
[WhiteElo "1799"]
[BlackElo "1638"]
[Annotator "NA RC"]
[PlyCount "53"]
[EventDate "2021.02.01"]
[EventType "swiss"]
[EventCountry "NET"]
[SourceTitle "playchess.com"]
[Source "ChessBase"]
[SourceQuality "1"]
[TimeControl "1500+10"]

1. e4 {[%emt 0:00:00]} c5 {[%emt 0:00:09]} 2. a3 {[%emt 0:00:07]} d6 {[%emt 0:00:14]} 3. Nf3 {[%emt 0:00:06]} Nf6 {[%emt 0:00:04]} 4. Nc3 {[%emt 0:00:05]} Nc6 {[%emt 0:00:07]} 5. Bb5 {[%emt 0:00:12]} Bd7 {[%emt 0:00:06]} 6. Bxc6 {[%emt 0:00:04]} Bxc6 {[%emt 0:00:03]} 7. d3 {[%emt 0:00:02]} e6 {[%emt 0:00:06]} 8. O-O {[%emt 0:00:13]} Be7 {[%emt 0:00:18]} 9. b4 {[%emt 0:00:34]} a6 {[%emt 0:00:19]} 10. Bb2 {[%emt 0:00:46]} Rc8 {[%emt 0:00:18]} 11. bxc5 {[%emt 0:00:17]} dxc5 {[%emt 0:00:06]} 12. Ne2 {[%emt 0:00:19]} Kf8 {[%emt 0:00:58]} 13. Ne5 {[%emt 0:01:11]} Qc7 {[%emt 0:00:22]} 14. f4 {[%emt 0:00:23]} Rd8 {[%emt 0:00:07]} 15. Qe1 {[%emt 0:01:11]} h5 {[%emt 0:00:52]} 16. Qc3 {[%emt 0:04:55]} Bb5 {[%emt 0:03:30]} 17. f5 {[%emt 0:05:04]} exf5 {[%emt 0:02:30]} 18. Rxf5 {[%emt 0:01:03]} Bd7 {[%emt 0:02:31]} 19. Nxd7+ {[%emt 0:00:46]} Rxd7 {[%emt 0:00:39]} 20. Raf1 {[%emt 0:00:40]} Bd8 {[%emt 0:03:52]} 21. Nf4 {[%emt 0:01:54]} Rh7 {[%emt 0:04:46]} 22. e5 {[%emt 0:01:38]} g6 {[%emt 0:05:22]} 23. Rxf6 {[%emt 0:00:51]} Bxf6 {[%emt 0:00:05]} 24. exf6 {[%emt 0:00:03]} Rd4 {[%emt 0:00:47]} 25. Qd2 {[%emt 0:01:03]} Rd7 {[%emt 0:00:27]} 26. Qe3 {[%emt 0:01:41]} Qc8 {[%emt 0:00:27]} 27. Re1 {[%emt 0:00:11]} 1-0